{"text_format":"1","workbook":"xlsx","n_sheets":1,"sheets":["CATALOGO "],"not_rendered":{"charts":0,"images":1,"macros":1,"external_links":0,"defined_names":2,"comments":0,"pivot_tables":0},"unopened":[],"bounds":{"document_bytes":16777216,"sheet_cells":100000,"rows_first":2000,"rows_last":500,"rows_between":2000,"halvings":0,"cell_chars":16384,"cell_head_chars":4096},"cells_cut":0,"cells_raw":0,"read":"whole","date_system":"1900"}

{"sheet":"CATALOGO ","index":0,"n_rows":179,"n_cols":10,"rows_kept":179,"cut":false,"hidden":false,"merged":[[139,5,139,6],[178,0,179,4],[178,5,179,8],[128,5,128,6],[130,0,131,4],[130,5,131,8],[132,0,132,1],[134,5,134,6],[136,0,136,1],[124,0,124,1],[85,5,85,6],[87,0,87,1],[97,0,98,4],[97,5,98,8],[102,4,102,6],[104,0,104,1],[111,5,111,6],[113,0,113,1],[115,5,115,6],[122,0,123,4],[122,5,123,8],[81,0,82,4],[81,5,82,8],[19,5,19,6],[20,5,20,6],[22,5,22,7],[23,5,23,7],[26,4,26,8],[55,0,56,4],[55,5,56,8],[57,0,57,1],[59,4,59,6],[61,0,61,1],[66,5,66,6],[68,0,68,1],[18,5,18,6],[7,6,8,6],[7,7,8,7],[7,8,8,8],[10,4,10,8],[11,5,11,6],[12,5,12,6],[7,5,8,5],[13,5,13,6],[14,5,14,6],[15,5,15,6],[16,5,16,6],[17,5,17,6],[7,0,8,0],[7,1,8,1],[7,2,8,2],[7,3,8,3],[7,4,8,4],[6,0,6,8],[0,3,0,8],[1,2,2,2],[1,3,1,6],[1,7,1,8],[2,3,3,6],[2,7,2,8],[3,7,3,8],[4,3,4,6],[4,7,4,8],[5,0,5,2],[5,3,5,4],[5,5,5,8]]}
[null,null,null,"EMPRESA: "]
[null,null,null,"LICITACIÓN No.: UMSNH/PROG2017/IRE-007/2017",null,null,null,"FECHA:"]
[null,null,null,"DESCRIPCIÓN DE LA OBRA:  Adecuación y Obras Complementarias en la Biblioteca Universitaria del Centenario."]
[null,null,null,null,null,null,null,"HOJA:"]
[null,null,"MORELIA, MICHOACÁN.  ","UBICACIÓN DE LA OBRA: Morelia, Municipio de Morelia."]
["MONTO TOTAL DE LA PROPOSICIÓN SIN I.V.A.:",null,null,0,null,"(MONTO TOTAL DE LA PROPOSICIÓN SIN I.V.A. Y CON LETRA)"]
["CATÁLOGO DE CONCEPTOS"]
["No.","Clave","DESCRIPCIÓN DEL CONCEPTO","Unidad","Cantidad","Precio unitario con letra","Precio Unitario","Importe en ($)","% de incidencia"]
[]
[]
[null,null,null,null,"Adecuación y Obras Complementarias en la Biblioteca Universitaria del Centenario."]
[null,null,null,null,"PARTIDA","RESUMEN",null,"% de incidencia","SUBTOTAL"]
[null,null,null,null,{"$f":"A58","v":"PAR0001"},{"$f":"C58","v":"DEMOLICIONES Y DESMONTAJES"},null,"%",0]
[null,null,null,null,{"$f":"A62","v":"PAR0002"},{"$f":"C62","v":"TABLEROS DE YESO Y TABLACEMENTO"},null,"%",0]
[null,null,null,null,{"$f":"A69","v":"PAR0003"},{"$f":"C69","v":"ALUMINIO Y VIDRIOS"},null,"%",0]
[null,null,null,null,{"$f":"A88","v":"PAR0004"},{"$f":"C88","v":"INSTALACIÓN ELÉCTRICA E ILUMINACIÓN"},null,"%",0]
[null,null,null,null,{"$f":"A105","v":"PAR0005"},{"$f":"C105","v":"INSTALACIÓN VOZ Y DATOS"},null,"%",0]
[null,null,null,null,{"$f":"A114","v":"PAR0006"},{"$f":"C114","v":"ACABADOS Y RECUBRIMIENTOS"},null,"%",0]
[null,null,null,null,{"$f":"A125","v":"PAR0007"},{"$f":"C125","v":"COLOCACIONES"},null,"%",0]
[null,null,null,null,{"$f":"A133","v":"PAR0008"},{"$f":"C133","v":"SEÑALÉTICA"},null,"%",0]
[null,null,null,null,{"$f":"A137","v":"PAR0009"},{"$f":"C137","v":"LIMPIEZAS"},null,"%",0]
[null,null,null,null,null,null,null,"TOTAL:",{"$f":"SUM(I13:I21)","v":0}]
[null,null,null,null,null,"I.V.A.:",null,null,{"$f":"ROUND(I22*0.16,2)","v":0}]
[null,null,null,null,null,"TOTAL:",null,null,{"$f":"I22+I23","v":0}]
[]
[]
[null,null,null,null,"(MONTO TOTAL DE LA PROPOSICIÓN CON LETRA)"]
[]
[]
[]
[]
[]
[]
[]
[]
[]
[]
[]
[]
[]
[]
[]
[]
[]
[]
[]
[]
[]
[]
[]
[]
[]
[]
[]
[]
["Nombre de la empresa",null,null,null,null,"Representante legal"]
[]
["PAR0001",null,"DEMOLICIONES Y DESMONTAJES"]
[1,"E04-1011","DESMONTAJE a cualquier nivel o altura de CANCELERÍA, VENTANERÍA o PUERTAS de ALUMINIO con CRISTAL o DUELA de cualquier línea, incluye recuperación de puertas, ventanas o canceles, liberación de pivotes o bisagras hidráulicas y retiro del material producto del desmontaje a ubicación indicada por la supervisión a cualquier distancia.","m2",34.68,{"$f":"PESOSMN(G59)","v":"( PESO 00/100 M.N.)"},null,{"$f":"ROUND(E59*G59,2)","v":0},"%"]
[null,null,null,null,"SUBTOTAL DE DEMOLICIONES Y DESMONTAJES:",null,null,{"$f":"SUM(H59:H59)","v":0}]
[]
["PAR0002",null,"TABLEROS DE YESO Y TABLACEMENTO"]
[2,"E11-2001A","Suministro y colocación de MURO de TABLAROCA CON RELLENO ACÚSTICO 13-63-13 a cualquier altura y nivel, con canal de amarre de lámina galvanizada calibre 26 de 63.5 mm, bastidor a base de postes metálicos galvanizados calibre 26 de 63.5 mm a cada 61 cm, 2 placas de tablaroca de 13 mm, incluye boquillas, colocación de canes de barrote de madera de pino de 3a. en marcos de puertas y ventanas, tornillería autorroscante de 26.4 mm, calafateado con perfacinta y pasta redimix, esquinero papel-metálico para protección de aristas y relleno con aislante acústico semirígido compuesto por fibras minerales de roca de alta calidad, resistentes a altas temperaturas y aglutinadas con resina termofija.","m2",54.72,{"$f":"PESOSMN(G63)","v":"( PESO 00/100 M.N.)"},null,{"$f":"ROUND(E63*G63,2)","v":0},"%"]
[3,"E11-2002","Suministro y colocación de LAMBRIN para CAJILLOS, RECUBRIMIENTOS, DUCTOS y FALDONES de TABLAROCA SIN RELLENO ACÚSTICO 13-63 a cualquier altura y nivel, con canal de amarre de lámina galvanizada calibre 26 de 63.5 mm, bastidor a base de postes metálicos galvanizados calibre 26 de 63.5 mm a cada 61 cm y 1 placa de tablaroca de 13 mm, incluye boquillas, colocación de canes de barrote de madera de pino de 3a. en marcos de puertas y ventanas, tornillería autorroscante de 26.4 mm, calafateado con perfacinta y pasta redimix y esquinero papel-metálico para protección de aristas.","m2",16.54,{"$f":"PESOSMN(G64)","v":"( PESO 00/100 M.N.)"},null,{"$f":"ROUND(E64*G64,2)","v":0},"%"]
[4,"E13-5105","Suministro y aplicación a cualquier nivel y altura de SELLADOR elástico de POLIURETANO en juntas de 6 x 5 mm promedio para evitar filtraciones, incluye limpieza de la superficie.","m",23.4,"( PESO 00/100 M.N.)",null,0,"%"]
[5,"E13-REGTR60X60","Elaboración a cualquier nivel y altura de REGISTRO de TABLARROCA de 0.60 x 0.60 m sobre plafón liso de tablaroca, incluye trazo, cortes, tapa de tablarroca de 12.7 mm, suspensión tipo DONN DX, canaleta de carga, canal listón, perfacinta, redimix, colganteo necesario y todo lo necesario para su fijación.","pza",4,"( PESO 00/100 M.N.)",null,0,"%"]
[null,null,null,null,null,"SUBTOTAL DE TABLEROS DE YESO Y TABLACEMENTO:",null,{"$f":"SUM(H63:H66)","v":0}]
[]
["PAR0003",null,"ALUMINIO Y VIDRIOS"]
[6,"E21-CALUM02","Suministro y colocación a cualquier nivel y altura de CANCELERÍA de ALUMINIO ESMALTADO BLANCO líneas 3\" y 1.750\" en VENTANAS CORREDIZAS, VENTANAS DE PROYECCIÓN y CANCELES INTERIORES Y EXTERIORES, incluye cristal claro de 6 mm de espesor, ESMERILADO (NO VINIL) donde sea indicado, herrajes, jaladeras, sellado con sellador grado arquitectónico y todo lo necesario para su fijación.","m2",20.7,{"$f":"PESOSMN(G70)","v":"( PESO 00/100 M.N.)"},null,{"$f":"ROUND(E70*G70,2)","v":0},"%"]
[]
[]
[]
[]
[]
[]
[]
[]
[]
[]
[]
["Nombre de la empresa",null,null,null,null,"Representante legal"]
[]
[7,"E21-PTALU05","Suministro y colocación a cualquier nivel y altura de PUERTA 2.90 m de alto x 1.60 m de largo a  DOS HOJAS elaborada a base de perfiles de aluminio línea de 1.750\" ESMALTADO BLANCO y cristal claro de 6 mm, esmerilado (NO VINIL), incluye contramarco con perfiles de aluminio línea 3\", antepecho de 0.70 m de alto x 1.60 m de largo, bisagras hidráulicas en piso para control de apertura y cierre hasta 180°, cerradura para puerta modelo 590 marca PHILLIPS, jaladera tubular de acero inoxidable de 1 1/4\" x 36\" centro a centro modelo GUAYMAS marca HERRALUM, tope para puerta marca PHILLIPS modelo 54 acabado tipo \"C\", sellado con silicón grado arquitectónico y todo lo necesario para su fijación.","pza",2,"( PESO 00/100 M.N.)",null,0,"%"]
[8,"E21-PTALU06","Suministro y colocación a cualquier nivel y altura de PUERTA de 2.90 m de alto x 1.00 m de largo elaborada a base de perfiles de aluminio línea 1.750\", ESMALTADO BLANCO y cristal CLARO de 6 mm acabado ESMERILADO, incluye pivote centrado o descentrado, tope para puerta marca PHILLIPS modelo 54, acabado tipo \"C\", chapa marca PHILLIPS modelo 3055, contramarco con perfiles de aluminio línea 3\", antepecho de 1.00 m de largo x 0.70 m de alto con cristal claro de 6 mm acabado esmerilado, sellado con silicón grado arquitectónico y todo lo necesario para su fijación.","pza",2,"( PESO 00/100 M.N.)",null,0,"%"]
[null,null,null,null,null,"SUBTOTAL DE ALUMINIO Y VIDRIOS:",null,{"$f":"SUM(H70:H85)","v":0}]
[]
["PAR0004",null,"INSTALACIÓN ELÉCTRICA E ILUMINACIÓN"]
[9,"E18-2224","Suministro y tendido a cualquier nivel y altura de TUBO CONDUIT GALVANIZADA PARED DELGADA de 19 mm (3/4\"), incluye guía de alambre galvanizado calibre 14, roscas, dobleces, fijación de tubería y ranuras donde se requiera, desperdicios, pasos y todo lo necesario para su correcto funcionamiento.","m",44.33,{"$f":"PESOSMN(G89)","v":"( PESO 00/100 M.N.)"},null,{"$f":"ROUND(E89*G89,2)","v":0},"%"]
[10,"E18-2226","Suministro y colocación a cualquier nivel y altura de CODO CONDUIT GALVANIZADA PARED DELGADA de 3/4\" (19 mm) de diámetro, incluye fijación de la pieza y ranuras donde se requiera, desperdicios y todo lo necesario para su correcto funcionamiento.","pza",4,"( PESO 00/100 M.N.)",null,0,"%"]
[11,"E18-2225","Suministro y colocación a cualquier nivel y altura de CONECTOR CONDUIT GALVANIZADA PARED DELGADA de 3/4\" (19 mm) de diámetro, incluye fijación de la pieza y ranuras donde se requiera, desperdicios y todo lo necesario para su correcto funcionamiento.","pza",68,"( PESO 00/100 M.N.)",null,0,"%"]
[12,"E18-2228","Suministro y colocación a cualquier nivel y altura de CAJA CUADRADA GALVANIZADA de 3/4\" (19 mm), incluye fijación de la pieza y ranuras donde se requiera, desperdicios y todo lo necesario para su correcto funcionamiento.","pza",18,"( PESO 00/100 M.N.)",null,0,"%",35159.760000000002]
[13,"E18-0295","Suministro y colocación a cualquier nivel o altura de CONTACTO o toma de corriente polarizada y aterrizada 2P+T marca Bticino código QZ5115DS línea QUINZIÑO MX, incluye pruebas y todo lo necesario para su fijación.","pza",18,{"$f":"PESOSMN(G93)","v":"( PESO 00/100 M.N.)"},null,0,"%"]
[14,"E18-0294","Suministro y colocación a cualquier nivel y altura de INTERRUPTOR SENCILLO 1 modulo marca Bticino línea QUINZIÑO MX código QZ5001, incluye pruebas y todo lo necesario para su fijación.","pza",9,"( PESO 00/100 M.N.)",null,0,"%"]
[15,"E18-035H","Suministro y colocación a cualquier nivel y altura de INTERRUPTOR de 3 VÍAS marca Bticino línea QUINZIÑO MX código QZ5003, incluye pruebas y todo lo necesario para su fijación.","pza",2,"( PESO 00/100 M.N.)",null,0,"%"]
[16,"E18-0293","Suministro y colocación a cualquier nivel o altura de PLACA piloto o de 1,2 o 3 módulos línea QUINZIÑO MX marca Bticino serie BRILLANTES color según muestra aprobada , incluye todo lo necesario para su fijación.","pza",11,"( PESO 00/100 M.N.)",null,0,"%"]
[17,"E18-SOBRETA02","Suministro y colocación a cualquier nivel y altura de SOBRETAPA GALVANIZADA para caja cuadrada de 3/4\" (19 mm) de diámetro, incluye fijación de la pieza y ranuras donde se requiera, desperdicios y todo lo necesario para su correcto funcionamiento.","pza",18,"( PESO 00/100 M.N.)",null,0,"%"]
["Nombre de la empresa",null,null,null,null,"Representante legal"]
[]
[18,"E18-0315","Suministro y tendido a cualquier nivel y altura de CABLE DE COBRE SUAVE THW-LS calibre 12 temperatura máxima de operación 90°C y tensión máxima de 600 volts, incluye cocas y desperdicios.","m",210.9,"( PESO 00/100 M.N.)",null,{"$f":"ROUND(E100*G100,2)","v":0},"%"]
[19,"E18-2241","Suministro y tendido a cualquier nivel y altura de CABLE de COBRE DESNUDO calibre 12, incluye cocas y desperdicios.","m",105,"( PESO 00/100 M.N.)",null,0,"%"]
[20,"E18-LUMLEDDIC02","Suministro y colocación a cualquier nivel y altura de REFLECTOR LED  dirigible 5 watts para empotrar en plafón marca TECNOLITE modelo YDLED-451/5W BARRANCA color BLANCO, incluye elaboración de hueco en falso plafón, lámpara LED 3000 K, y todo lo necesario para su fijación.","pza",19,"( PESO 00/100 M.N.)",null,0,"%"]
[null,null,null,null,"SUBTOTAL DE  ALBAÑILERÍA INSTALACIÓN ELÉCTRICA E ILUMINACIÓN:",null,null,{"$f":"SUM(H89:H102)","v":0}]
[]
["PAR0005",null,"INSTALACIÓN VOZ Y DATOS"]
[21,"E18-2224","Suministro y tendido a cualquier nivel y altura de TUBO CONDUIT GALVANIZADA PARED DELGADA de 19 mm (3/4\"), incluye guía de alambre galvanizado calibre 14, roscas, dobleces, fijación de tubería y ranuras donde se requiera, desperdicios, pasos y todo lo necesario para su correcto funcionamiento.","m",33.979999999999997,{"$f":"PESOSMN(G106)","v":"( PESO 00/100 M.N.)"},null,{"$f":"ROUND(E106*G106,2)","v":0},"%"]
[22,"E18-2226","Suministro y colocación a cualquier nivel y altura de CODO CONDUIT GALVANIZADA PARED DELGADA de 3/4\" (19 mm) de diámetro, incluye fijación de la pieza y ranuras donde se requiera, desperdicios y todo lo necesario para su correcto funcionamiento.","pza",4,"( PESO 00/100 M.N.)",null,0,"%"]
[23,"E18-2225","Suministro y colocación a cualquier nivel y altura de CONECTOR CONDUIT GALVANIZADA PARED DELGADA de 3/4\" (19 mm) de diámetro, incluye fijación de la pieza y ranuras donde se requiera, desperdicios y todo lo necesario para su correcto funcionamiento.","pza",50,"( PESO 00/100 M.N.)",null,0,"%"]
[24,"E18-2228","Suministro y colocación a cualquier nivel y altura de CAJA CUADRADA GALVANIZADA de 3/4\" (19 mm), incluye fijación de la pieza y ranuras donde se requiera, desperdicios y todo lo necesario para su correcto funcionamiento.","pza",13,"( PESO 00/100 M.N.)",null,0,"%"]
[25,"E18-SOBRETA02","Suministro y colocación a cualquier nivel y altura de SOBRETAPA GALVANIZADA para caja cuadrada de 3/4\" (19 mm) de diámetro, incluye fijación de la pieza y ranuras donde se requiera, desperdicios y todo lo necesario para su correcto funcionamiento.","pza",11,"( PESO 00/100 M.N.)",null,0,"%"]
[26,"E18-0293","Suministro y colocación a cualquier nivel o altura de PLACA piloto o de 1,2 o 3 módulos línea QUINZIÑO MX marca Bticino serie BRILLANTES color según muestra aprobada , incluye todo lo necesario para su fijación.","pza",11,"( PESO 00/100 M.N.)",null,0,"%"]
[null,null,null,null,null,"SUBTOTAL DE INSTALACIÓN VOZ Y DATOS:",null,{"$f":"SUM(H106:H111)","v":0}]
[]
["PAR0006",null,"ACABADOS Y RECUBRIMIENTOS"]
[27,"E22-PINTVI01","Suministro y aplicación a dos manos de PINTURA 100% ACRÍLICA mate para interiores o exteriores (5 años), trabajo terminado sobre muros, columnas y plafones, a cualquier altura y nivel, incluye sellador reforzado, rebabeo, resanes, limpieza de la superficie, boquillas y el equipo necesario.","m2",448.2,"( PESO 00/100 M.N.)",null,0,"%"]
[null,null,null,null,null,"SUBTOTAL DE ACABADOS Y RECUBRIMIENTOS:",null,{"$f":"SUM(H115)","v":0}]
[]
[]
[]
[]
[]
[]
["Nombre de la empresa",null,null,null,null,"Representante legal"]
[]
["PAR0007",null,"COLOCACIONES"]
[28,"E14-ESTAN02","Suministro y colocación a cualquier nivel y altura de ESTANTERÍA HECHA en OBRA subdividida a todo lo largo en piezas completas independientes de 0.90 m de longitud elaboradas a base de MADERA de PINO de PRIMERA de 3/4\" de espesor final y conformada cada pieza por dos módulos (superior e inferior) de los cuales el superior corresponde a la sección de ENTREPAÑOS de 0.90 m de ancho por 2.00 m de alto y 0.40 m de profundidad y la inferior a la sección de  CAJONERA de 0.90 m de ancho por 0.90 m de alto y 0.60 m de profundidad, incluye cortes a detalle, ajustes, nivelación, plomeo, desperdicios, acarreos, maniobras necesarias, zoclos, boceles o molduras necesarias, 8 CAJONES en la sección de CAJONERA, 4 espacios en la sección de ENTREPAÑOS, preservador para madera por impregnación de BUTINOX contra comején, polilla, hongos, etc., FONDO de poliuretano de aplicación directa a 3 manos, entintado según muestra aprobada con TINTA base para acabado con poliuretano, acabado final según muestra aprobada a 3 manos con BARNIZ de POLIURETANO semimate, 6 BISAGRAS (3 por puerta) tipo libro de acero inoxidable de primera calidad de 3.5” acabado satín , 2 PUERTAS ABATIBLES en la sección de entrepaños, CERRADURA con pestillo de resbalón de 25 mm tipo armario acabado pulido en puertas, 2 JALADERAS DE BOTÓN solido de acero inoxidable de 25 mm de diámetro (una por puerta), 20 CORREDERAS (2 por cajón) de extensión de acero zincado de 600 mm de longitud por 45 mm de ancho para un peso de 40 kg, CERRADURAS EN CAJONES tipo metálica cromada lateral para cierre simultaneo, 8 JALADERAS (1 por cajón) forma “U” de acero inoxidable solido de 160 mm de longitud y 12 mm de diámetro, 2 fijos con CRISTAL CLARO de 6 mm en puertas, tornillería galvanizada para fijación y armado, sellado con silicón grado arquitectónico en cristales, refuerzos de madera para fijación y taquetes.","m",36.630000000000003,{"$f":"PESOSMN(G126)","v":"( PESO 00/100 M.N.)"},null,{"$f":"ROUND(E126*G126,2)","v":0},"%"]
[29,"E14-BARR02","Suministro y colocación a cualquier nivel y altura de BARRA de ATENCIÓN HECHA en OBRA subdividida a todo lo largo en 5 piezas independientes elaboradas a base de MADERA de PINO de PRIMERA de 3/4\" de espesor final y conformada de manera INTEGRAL cada pieza por dos módulos (superior e inferior) de los cuales el superior corresponde a la sección de BARRA de ATENCIÓN DIRECTA al PÚBLICO de 0.55 m de alto a partir de la superficie superior del escritorio por 0.30 m de profundidad y la inferior a la sección de ESCRITORIO de 0.75 m de alto por 0.60 m de profundidad, incluye cortes, ajustes, nivelación, ensambles reforzados con placa metálica y adhesivo, plomeo, desperdicios, acarreos, maniobras necesarias, fijación de la BARRA de ATENCIÓN DIRECTA al PÚBLICO con el ESCRITORIO, zoclos, boceles o molduras necesarias, preservador para madera por impregnación de BUTINOX contra comején, polilla, hongos, etc., FONDO de poliuretano de aplicación directa a 3 manos, entintado según muestra aprobada con TINTA base para acabado con poliuretano, acabado final según muestra aprobada a 3 manos con BARNIZ DE POLIURETANO semimate, tornillería galvanizada para fijación y armado, sellado con silicón grado arquitectónico en cristales, refuerzos de madera para fijación, pasacables, niveladores, herrajes necesarios y taquetes.","m",11,"( PESO 00/100 M.N.)",null,0,"%"]
[30,"E500-EXTINT01","Suministro y colocación a cualquier nivel y altura de EXTINTOR MÓVIL listado bajo UL y el Servicio de Guarda Costas, tipo ABC o USOS MÚLTIPLES de 5 libras de capacidad con rango de temperatura –65° F a 120° F, cargado con polvo químico seco, especialmente fluídizado y silíconizado de mónofosfato de amonia que aísla químicamente los fuegos de clase A fundiéndose aproximadamente a unos 350° F y cubriendo toda la superficie a la cual es aplicado; sofoca y rompe la reacción en cadena de los fuegos de clase B y no conduce electricidad hacia el usuario, incluye válvula de aluminio, soporte y todo lo necesario para su fijación.","pza",2,"( PESO 00/100 M.N.)",null,0,"%"]
[null,null,null,null,null,"SUBTOTAL DE COLOCACIONES:",null,{"$f":"SUM(H126:H128)","v":0}]
[]
["Nombre de la empresa",null,null,null,null,"Representante legal"]
[]
["PAR0008",null,"SEÑALÉTICA"]
[31,"E85-SEÑAL01","Suministro y colocación a cualquier nivel y altura de SEÑALIZACIÓN en PEQUEÑOS LETREROS elaborada a base panel de dos capas de aluminio con relleno de polietileno de 3 mm de espesor acabado acero cepillado y texto en vinil calandrado de 80 micras, incluye cortes a detalle según medidas y fijación a superficie con cinta adhesiva industrial de espuma acrílica doble cara y adhesivo sensible a la presión.","m2",1,{"$f":"PESOSMN(G134)","v":"( PESO 00/100 M.N.)"},null,{"$f":"ROUND(E134*G134,2)","v":0},"%"]
[null,null,null,null,null,"SUBTOTAL DE SEÑALÉTICA:",null,{"$f":"SUM(H134:H134)","v":0}]
[]
["PAR0009",null,"LIMPIEZAS"]
[32,"E50-003","LIMPIEZA a detalle de PISOS de CEMENTO y CERÁMICO con cepillo, agua, ácido clorhídrico y/o jabón a cualquier nivel.","m2",241.1,{"$f":"PESOSMN(G138)","v":"( PESO 00/100 M.N.)"},null,{"$f":"ROUND(E138*G138,2)","v":0},"%"]
[33,"E50-004","LIMPIEZA a detalle de VIDRIOS y CRISTALES con agua, ácido clorhídrico y/o jabón por ambos lados a cualquier nivel y altura.","m2",72.38,{"$f":"PESOSMN(G139)","v":"( PESO 00/100 M.N.)"},null,{"$f":"ROUND(E139*G139,2)","v":0},"%"]
[null,null,null,null,null,"SUBTOTAL DE  LIMPIEZAS:",null,{"$f":"SUM(H138:H139)","v":0}]
[]
[]
[]
[]
[]
[]
[]
[]
[]
[]
[]
[]
[]
[]
[]
[]
[]
[]
[]
[]
[]
[]
[]
[]
[]
[]
[]
[]
[]
[]
[]
[]
[]
[]
[]
[]
[]
[]
["Nombre de la empresa",null,null,null,null,"Representante legal"]